[Event "*** Titled Tuesday Blitz"]
[Site "Chess.com"]
[Date "2020.04.28"]
[Round "1"]
[White "secretsuperstar7"]
[Black "claudyna16"]
[Result "0-1"]
[WhiteElo "2185"]
[BlackElo "2534"]
[TimeControl "180+1"]
[EndTime "10:06:59 PDT"]
[Termination "claudyna16 won by resignation"]

1. d4 {[%clk 0:02:56.5]} 1... Nf6 {[%clk 0:02:58.4]} 2. c4 {[%clk 0:02:55.8]}
2... g6 {[%clk 0:02:58.8]} 3. Nc3 {[%clk 0:02:55.2]} 3... Bg7 {[%clk 0:02:59.4]}
4. e4 {[%clk 0:02:55.1]} 4... O-O {[%clk 0:02:59.5]} 5. Nf3 {[%clk 0:02:53.1]}
5... d6 {[%clk 0:03:00.1]} 6. Be2 {[%clk 0:02:50.6]} 6... e5 {[%clk 0:03:00.1]}
7. d5 {[%clk 0:02:48.6]} 7... Na6 {[%clk 0:02:54.7]} 8. Bg5 {[%clk 0:02:42.1]}
8... h6 {[%clk 0:02:53.5]} 9. Bd2 {[%clk 0:02:27]} 9... Nc5 {[%clk 0:02:53.2]}
10. Qc2 {[%clk 0:02:25.5]} 10... a5 {[%clk 0:02:52.5]} 11. h3 {[%clk 0:02:23.7]}
11... Nh5 {[%clk 0:02:38.6]} 12. Qc1 {[%clk 0:02:02.8]} 12... Qe8 {[%clk
0:02:12.1]} 13. Bxh6 {[%clk 0:01:41.1]} 13... f5 {[%clk 0:02:11.7]} 14. Bxg7
{[%clk 0:01:29.8]} 14... Kxg7 {[%clk 0:02:12.6]} 15. exf5 {[%clk 0:01:21.9]}
15... gxf5 {[%clk 0:02:12.1]} 16. Qg5+ {[%clk 0:01:20.1]} 16... Qg6 {[%clk
0:02:12.2]} 17. Qxg6+ {[%clk 0:01:04.9]} 17... Kxg6 {[%clk 0:02:13.1]} 18. O-O-O
{[%clk 0:00:58.9]} 18... Nf4 {[%clk 0:02:12.9]} 19. Rhg1 {[%clk 0:00:53.8]}
19... e4 {[%clk 0:02:08.7]} 20. Nd4 {[%clk 0:00:51.3]} 20... Nfd3+ {[%clk
0:02:01.7]} 21. Bxd3 {[%clk 0:00:48.1]} 21... Nxd3+ {[%clk 0:02:02.6]} 22. Kc2
{[%clk 0:00:42.8]} 22... Nxf2 {[%clk 0:02:02.4]} 23. Rdf1 {[%clk 0:00:39.5]}
23... e3 {[%clk 0:02:00.7]} 24. Nce2 {[%clk 0:00:28.4]} 24... f4 {[%clk
0:01:58.1]} 25. g3 {[%clk 0:00:19.8]} 25... Nxh3 {[%clk 0:01:47.1]} 26. Nxf4+
{[%clk 0:00:17.1]} 26... Nxf4 {[%clk 0:01:44.6]} 27. gxf4+ {[%clk 0:00:16.9]}
27... Kf6 {[%clk 0:01:44.3]} 28. Kd3 {[%clk 0:00:16.9]} 28... Bh3 {[%clk
0:01:31.1]} 29. Rf3 {[%clk 0:00:15.9]} 29... Bf5+ {[%clk 0:01:31]} 30. Nxf5
{[%clk 0:00:13.8]} 30... Kxf5 {[%clk 0:01:31.9]} 31. Kxe3 {[%clk 0:00:14.1]}
31... Rae8+ {[%clk 0:01:31.2]} 32. Kd3 {[%clk 0:00:14.4]} 32... Rh8 {[%clk
0:01:30.4]} 33. Rg5+ {[%clk 0:00:14.1]} 33... Kf6 {[%clk 0:01:30.2]} 34. Rg2
{[%clk 0:00:13.3]} 34... Rh1 {[%clk 0:01:29.7]} 35. Rfg3 {[%clk 0:00:12.3]}
35... Re7 {[%clk 0:01:21.6]} 36. Rg6+ {[%clk 0:00:12.1]} 36... Kf5 {[%clk
0:01:21.7]} 37. R6g5+ {[%clk 0:00:12.3]} 37... Kxf4 {[%clk 0:01:21.9]} 38. R2g4+
{[%clk 0:00:11.8]} 38... Kf3 {[%clk 0:01:21.7]} 39. Rg3+ {[%clk 0:00:11.9]}
39... Kf2 {[%clk 0:01:22.2]} 40. Rg2+ {[%clk 0:00:11.5]} 40... Kf1 {[%clk
0:01:22.6]} 41. R2g3 {[%clk 0:00:11.3]} 41... Reh7 {[%clk 0:01:12.9]} 42. Rf3+
{[%clk 0:00:10.9]} 42... Ke1 {[%clk 0:01:12.9]} 43. Re3+ {[%clk 0:00:10.9]}
43... Kd1 {[%clk 0:01:13]} 44. Rg2 {[%clk 0:00:10.5]} 44... Kc1 {[%clk
0:01:11.5]} 45. Rc2+ {[%clk 0:00:09.9]} 45... Kb1 {[%clk 0:01:10.1]} 46. Rce2
{[%clk 0:00:09.7]} 46... R1h3 {[%clk 0:01:06.9]} 47. b3 {[%clk 0:00:09.6]} 47...
Rxe3+ {[%clk 0:01:05.2]} 48. Kxe3 {[%clk 0:00:10.5]} 48... Re7+ {[%clk
0:01:04.6]} 49. Kd2 {[%clk 0:00:10.8]} 49... Rxe2+ {[%clk 0:01:05.1]} 50. Kxe2
{[%clk 0:00:10.8]} 50... Kxa2 {[%clk 0:01:05.8]} 51. Kd3 {[%clk 0:00:10.4]}
51... Kxb3 {[%clk 0:01:06.1]} 52. Kd4 {[%clk 0:00:10.9]} 52... b6 {[%clk
0:01:05.1]} 53. c5 {[%clk 0:00:11.6]} 53... bxc5+ {[%clk 0:01:04.9]} 0-1

[Event "*** Titled Tuesday Blitz"]
[Site "Chess.com"]
[Date "2020.04.28"]
[Round "1"]
[White "GoValya"]
[Black "Marty435"]
[Result "0-1"]
[WhiteElo "2142"]
[BlackElo "2520"]
[TimeControl "180+1"]
[EndTime "10:06:59 PDT"]
[Termination "Marty435 won by resignation"]

1. d4 {[%clk 0:02:58.9]} 1... Nf6 {[%clk 0:02:59.6]} 2. Nf3 {[%clk 0:02:57.9]}
2... e6 {[%clk 0:02:59.1]} 3. g3 {[%clk 0:02:56]} 3... d5 {[%clk 0:02:58.6]} 4.
Bg2 {[%clk 0:02:55.6]} 4... Be7 {[%clk 0:02:56.7]} 5. O-O {[%clk 0:02:54.9]}
5... O-O {[%clk 0:02:57.2]} 6. c4 {[%clk 0:02:54.6]} 6... dxc4 {[%clk
0:02:57.7]} 7. Nbd2 {[%clk 0:02:53.9]} 7... b5 {[%clk 0:02:42.7]} 8. a4 {[%clk
0:02:41.7]} 8... c6 {[%clk 0:02:35]} 9. Ne5 {[%clk 0:02:28]} 9... Nd5 {[%clk
0:02:17.3]} 10. axb5 {[%clk 0:02:20.1]} 10... cxb5 {[%clk 0:02:16.2]} 11. Ne4
{[%clk 0:02:15.3]} 11... Bb7 {[%clk 0:02:01.7]} 12. Bd2 {[%clk 0:02:00.8]} 12...
Nc6 {[%clk 0:01:50.8]} 13. Nxc6 {[%clk 0:01:44.2]} 13... Bxc6 {[%clk 0:01:51.7]}
14. Qc2 {[%clk 0:01:36.5]} 14... Qb6 {[%clk 0:01:35.4]} 15. Rfd1 {[%clk
0:01:29.7]} 15... f5 {[%clk 0:01:27]} 16. Ng5 {[%clk 0:01:25.9]} 16... Bxg5
{[%clk 0:01:17.5]} 17. Bxg5 {[%clk 0:01:25]} 17... Nb4 {[%clk 0:01:10.4]} 18.
Qd2 {[%clk 0:01:19.9]} 18... Bxg2 {[%clk 0:01:09]} 19. Kxg2 {[%clk 0:01:16.9]}
19... Nd5 {[%clk 0:01:03.3]} 20. f3 {[%clk 0:01:08.8]} 20... h6 {[%clk
0:00:57.7]} 21. Be3 {[%clk 0:01:03.2]} 21... b4 {[%clk 0:00:53]} 22. Bf2 {[%clk
0:01:02]} 22... c3 {[%clk 0:00:52.3]} 23. bxc3 {[%clk 0:01:01.8]} 23... bxc3
{[%clk 0:00:52.6]} 24. Qd3 {[%clk 0:00:53]} 24... Rac8 {[%clk 0:00:51.3]} 25. e4
{[%clk 0:00:44.5]} 25... Nb4 {[%clk 0:00:49.5]} 26. Qe2 {[%clk 0:00:38.8]} 26...
c2 {[%clk 0:00:46.6]} 27. Rdc1 {[%clk 0:00:38.3]} 27... fxe4 {[%clk 0:00:46]}
28. fxe4 {[%clk 0:00:36.3]} 28... a6 {[%clk 0:00:31.6]} 29. d5 {[%clk
0:00:35.3]} 29... Qb5 {[%clk 0:00:25.5]} 30. Qxb5 {[%clk 0:00:33]} 30... axb5
{[%clk 0:00:26.4]} 31. dxe6 {[%clk 0:00:30]} 31... Nd3 {[%clk 0:00:26.4]} 32. e7
{[%clk 0:00:20.3]} 32... Rxf2+ {[%clk 0:00:24.6]} 33. Kg1 {[%clk 0:00:19.2]}
33... Nxc1 {[%clk 0:00:20.3]} 34. Rxc1 {[%clk 0:00:18.4]} 34... Re2 {[%clk
0:00:19.1]} 35. Kf1 {[%clk 0:00:18.2]} 35... Rxe4 {[%clk 0:00:19]} 36. Rxc2
{[%clk 0:00:17.5]} 36... Rxc2 {[%clk 0:00:18.2]} 0-1

[Event "*** Titled Tuesday Blitz"]
[Site "Chess.com"]
[Date "2020.04.28"]
[Round "1"]
[White "MaxVavulin"]
[Black "atwalcb"]
[Result "1-0"]
[WhiteElo "2605"]
[BlackElo "2277"]
[TimeControl "180+1"]
[EndTime "10:07:00 PDT"]
[Termination "MaxVavulin won by resignation"]

1. e4 {[%clk 0:03:00.9]} 1... d6 {[%clk 0:02:59.8]} 2. d4 {[%clk 0:03:00.1]}
2... Nf6 {[%clk 0:02:59.9]} 3. Nc3 {[%clk 0:02:59.8]} 3... Nbd7 {[%clk
0:03:00.2]} 4. f4 {[%clk 0:02:48.8]} 4... e5 {[%clk 0:03:00.1]} 5. Nf3 {[%clk
0:02:49.3]} 5... exd4 {[%clk 0:03:00.2]} 6. Qxd4 {[%clk 0:02:49.3]} 6... c6
{[%clk 0:03:00.4]} 7. Be3 {[%clk 0:02:47.4]} 7... d5 {[%clk 0:02:59.9]} 8. exd5
{[%clk 0:02:36.4]} 8... Bc5 {[%clk 0:02:58.3]} 9. Qd3 {[%clk 0:02:35.8]} 9...
Qe7 {[%clk 0:02:49.4]} 10. Kd2 {[%clk 0:02:34.2]} 10... Bxe3+ {[%clk 0:02:26.3]}
11. Qxe3 {[%clk 0:02:33.8]} 11... Qxe3+ {[%clk 0:02:25.4]} 12. Kxe3 {[%clk
0:02:33.8]} 12... cxd5 {[%clk 0:02:25.5]} 13. Bd3 {[%clk 0:02:18.1]} 13... O-O
{[%clk 0:02:23.3]} 14. Rae1 {[%clk 0:02:05.3]} 14... Nc5 {[%clk 0:02:21]} 15. h3
{[%clk 0:01:54.8]} 15... Bd7 {[%clk 0:02:02.6]} 16. Ne5 {[%clk 0:01:29.1]} 16...
Bc6 {[%clk 0:02:00.2]} 17. Rhg1 {[%clk 0:01:18.5]} 17... Ne6 {[%clk 0:01:50.4]}
18. Ne2 {[%clk 0:01:17.6]} 18... d4+ {[%clk 0:01:39]} 19. Kd2 {[%clk 0:01:16.7]}
19... Nd5 {[%clk 0:01:37.2]} 20. g3 {[%clk 0:01:13.1]} 20... f5 {[%clk
0:01:30.9]} 21. Bc4 {[%clk 0:01:03.9]} 21... Rfe8 {[%clk 0:01:25.8]} 22. Nc1
{[%clk 0:00:30.8]} 22... Kf8 {[%clk 0:01:17]} 23. Nxc6 {[%clk 0:00:23.5]} 23...
bxc6 {[%clk 0:01:16.9]} 24. Re5 {[%clk 0:00:24.1]} 24... g6 {[%clk 0:00:59.6]}
25. Nd3 {[%clk 0:00:24]} 25... Ndc7 {[%clk 0:00:55.8]} 26. Rge1 {[%clk
0:00:22.5]} 26... Ng7 {[%clk 0:00:56]} 27. Nc5 {[%clk 0:00:20.7]} 27... Rxe5
{[%clk 0:00:49.1]} 28. Nd7+ {[%clk 0:00:16.1]} 28... Ke7 {[%clk 0:00:42.9]} 29.
Nxe5 {[%clk 0:00:16.6]} 29... Kd6 {[%clk 0:00:41.6]} 30. Nf7+ {[%clk 0:00:17.1]}
30... Kc5 {[%clk 0:00:41.8]} 31. Kd3 {[%clk 0:00:17.1]} 31... Re8 {[%clk
0:00:37.9]} 32. Ne5 {[%clk 0:00:11.7]} 32... Nd5 {[%clk 0:00:31.1]} 33. a3
{[%clk 0:00:11.5]} 33... a5 {[%clk 0:00:29.1]} 34. Ba2 {[%clk 0:00:08]} 34...
Rb8 {[%clk 0:00:28.5]} 35. Nd7+ {[%clk 0:00:06.8]} 1-0

[Event "*** Titled Tuesday Blitz"]
[Site "Chess.com"]
[Date "2020.04.28"]
[Round "1"]
[White "Tall-guy"]
[Black "Mikhail_Golubev"]
[Result "0-1"]
[WhiteElo "2105"]
[BlackElo "2504"]
[TimeControl "180+1"]
[EndTime "10:07:00 PDT"]
[Termination "Mikhail_Golubev won on time"]

1. e4 {[%clk 0:02:59.9]} 1... c5 {[%clk 0:02:59.1]} 2. Nf3 {[%clk 0:02:58.6]}
2... d6 {[%clk 0:02:58.1]} 3. Bb5+ {[%clk 0:02:58.5]} 3... Nc6 {[%clk
0:02:56.4]} 4. O-O {[%clk 0:02:57.3]} 4... Bd7 {[%clk 0:02:56.1]} 5. Re1 {[%clk
0:02:55.8]} 5... a6 {[%clk 0:02:50.9]} 6. Bxc6 {[%clk 0:02:46.9]} 6... Bxc6
{[%clk 0:02:50.8]} 7. d4 {[%clk 0:02:47.8]} 7... cxd4 {[%clk 0:02:49.7]} 8. Nxd4
{[%clk 0:02:47.5]} 8... Nf6 {[%clk 0:02:49.2]} 9. Nxc6 {[%clk 0:02:45.1]} 9...
bxc6 {[%clk 0:02:48.7]} 10. Nd2 {[%clk 0:02:44.6]} 10... g6 {[%clk 0:02:42.5]}
11. Qf3 {[%clk 0:02:44.6]} 11... Bg7 {[%clk 0:01:54.4]} 12. Nc4 {[%clk
0:02:41.2]} 12... O-O {[%clk 0:01:48.8]} 13. Be3 {[%clk 0:02:34.2]} 13... d5
{[%clk 0:01:37.4]} 14. Rad1 {[%clk 0:02:12.9]} 14... Rb8 {[%clk 0:01:09.8]} 15.
e5 {[%clk 0:01:57.1]} 15... Nd7 {[%clk 0:01:06.6]} 16. Qh3 {[%clk 0:01:30.4]}
16... e6 {[%clk 0:00:52.4]} 17. Nd2 {[%clk 0:00:51.5]} 17... Rxb2 {[%clk
0:00:52.1]} 18. Bh6 {[%clk 0:00:48.4]} 18... Rxc2 {[%clk 0:00:43]} 19. Bxg7
{[%clk 0:00:44.9]} 19... Kxg7 {[%clk 0:00:42.7]} 20. Re3 {[%clk 0:00:41.7]}
20... Qg5 {[%clk 0:00:32.8]} 21. Nf1 {[%clk 0:00:37.4]} 21... Nxe5 {[%clk
0:00:26]} 22. Rg3 {[%clk 0:00:19.5]} 22... Qf4 {[%clk 0:00:21]} 23. Ne3 {[%clk
0:00:10.6]} 23... Qxf2+ {[%clk 0:00:17.8]} 24. Kh1 {[%clk 0:00:10.2]} 24... Re2
{[%clk 0:00:13.3]} 25. Rf1 {[%clk 0:00:07.3]} 25... Re1 {[%clk 0:00:12.5]} 26.
Rf3 {[%clk 0:00:06.7]} 26... Qxe3 {[%clk 0:00:10.4]} 0-1

[Event "*** Titled Tuesday Blitz"]
[Site "Chess.com"]
[Date "2020.04.28"]
[Round "1"]
[White "freshfoodcompany"]
[Black "Balla_Tamas"]
[Result "0-1"]
[WhiteElo "2188"]
[BlackElo "2535"]
[TimeControl "180+1"]
[EndTime "10:07:01 PDT"]
[Termination "Balla_Tamas won on time"]

1. d4 {[%clk 0:03:00.9]} 1... Nf6 {[%clk 0:02:58.8]} 2. c4 {[%clk 0:03:00.7]}
2... g6 {[%clk 0:02:58.9]} 3. Nc3 {[%clk 0:03:00.9]} 3... Bg7 {[%clk 0:02:59.6]}
4. e4 {[%clk 0:03:01.3]} 4... O-O {[%clk 0:03:00]} 5. Nf3 {[%clk 0:03:01.7]}
5... d6 {[%clk 0:02:59.8]} 6. Be2 {[%clk 0:03:01.8]} 6... Bg4 {[%clk 0:02:59.3]}
7. Be3 {[%clk 0:02:56.5]} 7... Nfd7 {[%clk 0:02:58.3]} 8. O-O {[%clk 0:02:55.5]}
8... c5 {[%clk 0:02:57.6]} 9. Rc1 {[%clk 0:02:53.6]} 9... Bxf3 {[%clk
0:02:52.2]} 10. Bxf3 {[%clk 0:02:53.4]} 10... cxd4 {[%clk 0:02:51.3]} 11. Bxd4
{[%clk 0:02:51.9]} 11... Bxd4 {[%clk 0:02:51.8]} 12. Qxd4 {[%clk 0:02:51.3]}
12... Nc6 {[%clk 0:02:52.4]} 13. Qd2 {[%clk 0:02:48]} 13... Rc8 {[%clk
0:02:37.4]} 14. Nd5 {[%clk 0:02:35.2]} 14... Nde5 {[%clk 0:02:30]} 15. Be2
{[%clk 0:02:33.2]} 15... e6 {[%clk 0:02:24.7]} 16. Nb4 {[%clk 0:02:18.3]} 16...
Nxb4 {[%clk 0:02:19]} 17. Qxb4 {[%clk 0:02:16.2]} 17... Qc7 {[%clk 0:02:19.6]}
18. Rfd1 {[%clk 0:02:14.1]} 18... Rfd8 {[%clk 0:02:19.6]} 19. f4 {[%clk
0:02:10.8]} 19... Nc6 {[%clk 0:02:17.1]} 20. Qb3 {[%clk 0:02:04]} 20... e5
{[%clk 0:02:14.2]} 21. f5 {[%clk 0:01:57.1]} 21... Nd4 {[%clk 0:02:06.6]} 22.
Rxd4 {[%clk 0:01:38.8]} 22... Qc5 {[%clk 0:02:01.2]} 23. Rf1 {[%clk 0:01:14.1]}
23... Qxd4+ {[%clk 0:01:47.1]} 24. Kh1 {[%clk 0:01:13.6]} 24... Qxe4 {[%clk
0:01:44.9]} 25. Bd3 {[%clk 0:01:04.6]} 25... Qc6 {[%clk 0:01:31.2]} 26. fxg6
{[%clk 0:01:00.4]} 26... hxg6 {[%clk 0:01:29.8]} 27. c5 {[%clk 0:00:59.7]} 27...
d5 {[%clk 0:01:27.3]} 28. Bb5 {[%clk 0:00:49.1]} 28... Qe6 {[%clk 0:01:22.2]}
29. Qe3 {[%clk 0:00:36.7]} 29... Kg7 {[%clk 0:01:07.9]} 30. b4 {[%clk
0:00:33.4]} 30... Rh8 {[%clk 0:01:04.7]} 31. Qf2 {[%clk 0:00:27.7]} 31... Rh5
{[%clk 0:00:59.6]} 32. Bd3 {[%clk 0:00:20.4]} 32... e4 {[%clk 0:00:55.2]} 33.
Be2 {[%clk 0:00:19.6]} 33... Rf5 {[%clk 0:00:54.1]} 34. Qd4+ {[%clk 0:00:19.3]}
34... Qe5 {[%clk 0:00:53.7]} 35. Qd1 {[%clk 0:00:14.8]} 35... Rxf1+ {[%clk
0:00:51.8]} 36. Qxf1 {[%clk 0:00:14.6]} 36... Rh8 {[%clk 0:00:52.2]} 37. h3
{[%clk 0:00:14.2]} 37... d4 {[%clk 0:00:50.3]} 38. Bc4 {[%clk 0:00:13.1]} 38...
Qf6 {[%clk 0:00:50.3]} 39. Qe2 {[%clk 0:00:11.8]} 39... Re8 {[%clk 0:00:49.5]}
40. b5 {[%clk 0:00:11.1]} 40... Re5 {[%clk 0:00:47.3]} 41. c6 {[%clk 0:00:05.2]}
41... bxc6 {[%clk 0:00:46.8]} 42. Qd2 {[%clk 0:00:05]} 42... c5 {[%clk
0:00:44.3]} 0-1

[Event "*** Titled Tuesday Blitz"]
[Site "Chess.com"]
[Date "2020.04.28"]
[Round "1"]
[White "CMS13"]
[Black "Szparu"]
[Result "1/2-1/2"]
[WhiteElo "2148"]
[BlackElo "2510"]
[TimeControl "180+1"]
[EndTime "10:07:03 PDT"]
[Termination "Game drawn by repetition"]

1. e4 {[%clk 0:03:00.9]} 1... c5 {[%clk 0:02:58]} 2. Nc3 {[%clk 0:03:00.2]} 2...
g6 {[%clk 0:02:57.1]} 3. Nf3 {[%clk 0:02:59.3]} 3... Bg7 {[%clk 0:02:56.5]} 4.
d4 {[%clk 0:02:59.3]} 4... cxd4 {[%clk 0:02:56.5]} 5. Nxd4 {[%clk 0:02:59.4]}
5... Nc6 {[%clk 0:02:54.7]} 6. Be3 {[%clk 0:02:59.5]} 6... Nf6 {[%clk
0:02:53.3]} 7. Bc4 {[%clk 0:02:58.7]} 7... O-O {[%clk 0:02:42.5]} 8. Bb3 {[%clk
0:02:57.1]} 8... d6 {[%clk 0:02:35.6]} 9. h3 {[%clk 0:02:40.9]} 9... Bd7 {[%clk
0:02:22.7]} 10. O-O {[%clk 0:02:39.5]} 10... Rc8 {[%clk 0:02:10.7]} 11. f4
{[%clk 0:02:31]} 11... Nxd4 {[%clk 0:01:37.7]} 12. Bxd4 {[%clk 0:02:29.8]} 12...
Bc6 {[%clk 0:01:37.6]} 13. e5 {[%clk 0:01:56.2]} 13... dxe5 {[%clk 0:01:36.5]}
14. fxe5 {[%clk 0:01:55.6]} 14... Nd5 {[%clk 0:01:30.2]} 15. Ne4 {[%clk
0:01:38]} 15... Ne3 {[%clk 0:01:21.2]} 16. Bxe3 {[%clk 0:01:21.9]} 16... Qxd1
{[%clk 0:01:20.2]} 17. Raxd1 {[%clk 0:01:09.2]} 17... Bxe4 {[%clk 0:01:20]} 18.
Bxa7 {[%clk 0:00:53.1]} 18... Bxc2 {[%clk 0:01:10.1]} 19. Rd7 {[%clk 0:00:26.2]}
19... Bxb3 {[%clk 0:01:08.9]} 20. axb3 {[%clk 0:00:25.8]} 20... Rfe8 {[%clk
0:00:51.7]} 21. Rxb7 {[%clk 0:00:19.5]} 21... Bxe5 {[%clk 0:00:50.7]} 22. b4
{[%clk 0:00:19.9]} 22... f5 {[%clk 0:00:43.4]} 23. Bc5 {[%clk 0:00:19.9]} 23...
Bxb2 {[%clk 0:00:37.4]} 24. Re1 {[%clk 0:00:20]} 24... e5 {[%clk 0:00:34.4]} 25.
Rb1 {[%clk 0:00:18.5]} 25... Bd4+ {[%clk 0:00:33.8]} 26. Bxd4 {[%clk 0:00:18.8]}
26... exd4 {[%clk 0:00:33.9]} 27. Rd1 {[%clk 0:00:19.4]} 27... Rcd8 {[%clk
0:00:33]} 28. b5 {[%clk 0:00:19.3]} 28... d3 {[%clk 0:00:32.9]} 29. Kf1 {[%clk
0:00:19]} 29... Rd6 {[%clk 0:00:30.6]} 30. b6 {[%clk 0:00:19.1]} 30... g5 {[%clk
0:00:21.6]} 31. Rc7 {[%clk 0:00:18.3]} 31... Rxb6 {[%clk 0:00:20.7]} 32. Rxd3
{[%clk 0:00:18.5]} 32... Rb1+ {[%clk 0:00:18.1]} 33. Kf2 {[%clk 0:00:18.9]}
33... Rb2+ {[%clk 0:00:18.3]} 34. Kf1 {[%clk 0:00:18.4]} 34... Rb1+ {[%clk
0:00:13.2]} 35. Kf2 {[%clk 0:00:18.4]} 35... Rb2+ {[%clk 0:00:13.4]} 36. Kf1
{[%clk 0:00:18.8]} 36... Rb1+ {[%clk 0:00:11.7]} 1/2-1/2

[Event "*** Titled Tuesday Blitz"]
[Site "Chess.com"]
[Date "2020.04.28"]
[Round "1"]
[White "Kimster98"]
[Black "AniJak"]
[Result "1-0"]
[WhiteElo "2579"]
[BlackElo "2243"]
[TimeControl "180+1"]
[EndTime "10:07:04 PDT"]
[Termination "Kimster98 won by checkmate"]

1. d4 {[%clk 0:03:00.9]} 1... d5 {[%clk 0:02:59]} 2. Bf4 {[%clk 0:03:00.1]} 2...
Nf6 {[%clk 0:02:56.5]} 3. e3 {[%clk 0:03:00.6]} 3... Bf5 {[%clk 0:02:49.9]} 4.
Bd3 {[%clk 0:02:59]} 4... Bg6 {[%clk 0:02:47.9]} 5. Nf3 {[%clk 0:02:53.1]} 5...
c6 {[%clk 0:02:43.5]} 6. O-O {[%clk 0:02:52]} 6... e6 {[%clk 0:02:41.5]} 7. c4
{[%clk 0:02:50.8]} 7... Bd6 {[%clk 0:02:40.8]} 8. Bxd6 {[%clk 0:02:50.3]} 8...
Qxd6 {[%clk 0:02:39.5]} 9. Nc3 {[%clk 0:02:50.8]} 9... Ne4 {[%clk 0:02:34.6]}
10. Ne5 {[%clk 0:02:35.5]} 10... Nxc3 {[%clk 0:02:25]} 11. bxc3 {[%clk
0:02:36.4]} 11... Nd7 {[%clk 0:02:19.4]} 12. Nxd7 {[%clk 0:02:30.1]} 12... Qxd7
{[%clk 0:02:17]} 13. cxd5 {[%clk 0:02:29.5]} 13... Bxd3 {[%clk 0:02:14.1]} 14.
dxe6 {[%clk 0:02:24.3]} 14... Qxe6 {[%clk 0:02:07.3]} 15. Qxd3 {[%clk
0:02:22.6]} 15... O-O {[%clk 0:02:06.1]} 16. c4 {[%clk 0:02:22.8]} 16... Rad8
{[%clk 0:02:04.5]} 17. Rab1 {[%clk 0:02:16.9]} 17... b6 {[%clk 0:02:03.5]} 18.
a4 {[%clk 0:02:16.8]} 18... Rfe8 {[%clk 0:01:57.5]} 19. Rfc1 {[%clk 0:02:10.4]}
19... h6 {[%clk 0:01:56.1]} 20. c5 {[%clk 0:02:09.6]} 20... bxc5 {[%clk
0:01:54]} 21. Rxc5 {[%clk 0:02:10.5]} 21... Rb8 {[%clk 0:01:48.3]} 22. Rbc1
{[%clk 0:02:09.2]} 22... Rb3 {[%clk 0:01:43]} 23. Qc4 {[%clk 0:02:06.6]} 23...
Qxc4 {[%clk 0:01:23.7]} 24. R1xc4 {[%clk 0:02:07.5]} 24... Re6 {[%clk
0:01:16.1]} 25. g3 {[%clk 0:01:54.7]} 25... Ra3 {[%clk 0:01:11.9]} 26. Kg2
{[%clk 0:01:44.8]} 26... Rf6 {[%clk 0:01:08.9]} 27. Rxc6 {[%clk 0:01:44.3]}
27... Rxc6 {[%clk 0:01:06]} 28. Rxc6 {[%clk 0:01:45.2]} 28... Rxa4 {[%clk
0:01:05.8]} 29. Rc8+ {[%clk 0:01:46.1]} 29... Kh7 {[%clk 0:01:04.1]} 30. Rc7
{[%clk 0:01:47]} 30... Kg6 {[%clk 0:01:03.5]} 31. Kf3 {[%clk 0:01:43.3]} 31...
Ra1 {[%clk 0:01:02.7]} 32. h4 {[%clk 0:01:42.5]} 32... a5 {[%clk 0:01:00.9]} 33.
Rc6+ {[%clk 0:01:39.4]} 33... Kh7 {[%clk 0:00:58]} 34. Ra6 {[%clk 0:01:39.3]}
34... f5 {[%clk 0:00:51.4]} 35. h5 {[%clk 0:01:37]} 35... Ra2 {[%clk 0:00:50.7]}
36. d5 {[%clk 0:01:32.6]} 36... Kg8 {[%clk 0:00:49.8]} 37. Ra7 {[%clk
0:01:26.4]} 37... Kf8 {[%clk 0:00:49]} 38. d6 {[%clk 0:01:25.5]} 38... Rd2
{[%clk 0:00:43.7]} 39. Rxa5 {[%clk 0:01:23.9]} 39... Rxd6 {[%clk 0:00:40.6]} 40.
Rxf5+ {[%clk 0:01:24]} 40... Ke7 {[%clk 0:00:39.6]} 41. g4 {[%clk 0:01:21.1]}
41... Rd1 {[%clk 0:00:39.2]} 42. Ra5 {[%clk 0:01:18.8]} 42... Rg1 {[%clk
0:00:38.3]} 43. Ra7+ {[%clk 0:01:17.1]} 43... Kf6 {[%clk 0:00:38.3]} 44. Ra6+
{[%clk 0:01:11]} 44... Kf7 {[%clk 0:00:37.6]} 45. Ra7+ {[%clk 0:01:07.9]} 45...
Kf6 {[%clk 0:00:36.8]} 46. Kf4 {[%clk 0:01:06.7]} 46... Rb1 {[%clk 0:00:35.6]}
47. e4 {[%clk 0:00:58.2]} 47... Rb4 {[%clk 0:00:35.4]} 48. f3 {[%clk 0:00:58.4]}
48... Rc4 {[%clk 0:00:35]} 49. Ra6+ {[%clk 0:00:58.5]} 49... Kf7 {[%clk
0:00:34.1]} 50. Kf5 {[%clk 0:00:59.1]} 50... Rc3 {[%clk 0:00:34.2]} 51. f4
{[%clk 0:00:58.5]} 51... Rb3 {[%clk 0:00:33.5]} 52. Ra7+ {[%clk 0:00:57.9]}
52... Kf8 {[%clk 0:00:32.5]} 53. e5 {[%clk 0:00:58.3]} 53... Rb6 {[%clk
0:00:31.9]} 54. Rc7 {[%clk 0:00:51.5]} 54... Rb5 {[%clk 0:00:31.5]} 55. Rd7
{[%clk 0:00:47.7]} 55... Ra5 {[%clk 0:00:31.6]} 56. Ke6 {[%clk 0:00:47]} 56...
Rb5 {[%clk 0:00:32.1]} 57. Rd8# {[%clk 0:00:46.5]} 1-0

[Event "*** Titled Tuesday Blitz"]
[Site "Chess.com"]
[Date "2020.04.28"]
[Round "1"]
[White "EvilMorty23"]
[Black "Duong57"]
[Result "1-0"]
[WhiteElo "2536"]
[BlackElo "2190"]
[TimeControl "180+1"]
[EndTime "10:07:04 PDT"]
[Termination "EvilMorty23 won on time"]

1. e4 {[%clk 0:03:00.9]} 1... c5 {[%clk 0:02:59.1]} 2. Nf3 {[%clk 0:03:01]} 2...
d6 {[%clk 0:02:58.7]} 3. d4 {[%clk 0:03:01.2]} 3... cxd4 {[%clk 0:02:58.3]} 4.
Qxd4 {[%clk 0:03:02.1]} 4... a6 {[%clk 0:02:57.3]} 5. c4 {[%clk 0:03:01.6]} 5...
Nc6 {[%clk 0:02:57.1]} 6. Qd2 {[%clk 0:03:01.8]} 6... g6 {[%clk 0:02:50.7]} 7.
Nc3 {[%clk 0:03:01.9]} 7... Bh6 {[%clk 0:02:46.4]} 8. Qc2 {[%clk 0:02:45.7]}
8... Bg7 {[%clk 0:02:45.8]} 9. b3 {[%clk 0:02:45.4]} 9... Nf6 {[%clk 0:02:40.1]}
10. Bb2 {[%clk 0:02:44.6]} 10... Bg4 {[%clk 0:02:39.3]} 11. Be2 {[%clk
0:02:37.2]} 11... O-O {[%clk 0:02:35.8]} 12. Rd1 {[%clk 0:02:35.7]} 12... Rc8
{[%clk 0:02:34]} 13. O-O {[%clk 0:02:35.1]} 13... Nd7 {[%clk 0:02:21.2]} 14. h3
{[%clk 0:02:29.3]} 14... Bxf3 {[%clk 0:02:02.6]} 15. Bxf3 {[%clk 0:02:30.2]}
15... Nd4 {[%clk 0:02:02.5]} 16. Qd3 {[%clk 0:02:15]} 16... Ne5 {[%clk
0:02:01.7]} 17. Qe3 {[%clk 0:02:10.3]} 17... Nexf3+ {[%clk 0:01:42.1]} 18. gxf3
{[%clk 0:02:11.2]} 18... e5 {[%clk 0:01:42.3]} 19. Nd5 {[%clk 0:02:07]} 19...
Ne6 {[%clk 0:01:38.2]} 20. Kh2 {[%clk 0:01:59.4]} 20... f5 {[%clk 0:01:21.3]}
21. Rg1 {[%clk 0:01:47.6]} 21... Kh8 {[%clk 0:00:39.1]} 22. exf5 {[%clk
0:01:09.4]} 22... Rxf5 {[%clk 0:00:37.7]} 23. Rg4 {[%clk 0:00:59.9]} 23... Qf8
{[%clk 0:00:18.7]} 24. Kg2 {[%clk 0:00:59.7]} 24... Qf7 {[%clk 0:00:16.5]} 25.
Rd3 {[%clk 0:00:53]} 25... h5 {[%clk 0:00:16]} 26. Rh4 {[%clk 0:00:48.7]} 26...
Kh7 {[%clk 0:00:13.7]} 27. Ba3 {[%clk 0:00:47.4]} 27... Bh6 {[%clk 0:00:13.3]}
28. Qe2 {[%clk 0:00:45.4]} 28... g5 {[%clk 0:00:13]} 29. Re4 {[%clk 0:00:43.8]}
29... Rc6 {[%clk 0:00:06.7]} 30. Nb4 {[%clk 0:00:38.5]} 30... Nf4+ {[%clk
0:00:06.1]} 31. Rxf4 {[%clk 0:00:37.3]} 31... gxf4 {[%clk 0:00:05]} 32. Nxc6
{[%clk 0:00:36.7]} 32... Qg7+ {[%clk 0:00:02.1]} 33. Kf1 {[%clk 0:00:36.8]}
33... Rg5 {[%clk 0:00:01.8]} 34. Qc2 {[%clk 0:00:37]} 34... Rg1+ {[%clk
0:00:01.2]} 35. Ke2 {[%clk 0:00:37.4]} 35... bxc6 {[%clk 0:00:01.5]} 36. Rxd6+
{[%clk 0:00:36.1]} 36... Rg6 {[%clk 0:00:01.9]} 37. Rxc6 {[%clk 0:00:34.5]} 1-0